Cogmind - Beta 17 @@@ ROGUE MODE // 2026.07.05 @ 21:37:42 Player: 3.14 Result: Destroyed by Y-45 Defender with Beam Rifle Performance ------------- Evolutions (2) 1000 Regions Visited (3) 600 Robots Destroyed (50) 250 Value Destroyed (1378) 1378 Prototype IDs (7) 140 Alien Tech Used (0) 0 Bonus (0) 0 TOTAL SCORE: 3368 Bonus ------- None Cogmind --------- Core Integrity 0/550 Matter 282/300 Energy 100/100 System Corruption 2% Temperature Cool (9) Movement Core (50) Location -8/Materials Parts ------- > --- POWER (1) -------- (None) > --- PROPULSION (4) --- (None) > --- UTILITY (4) ------ (None) > --- WEAPON (2) ------- (None) > --- INVENTORY (5) ---- Carbon-fiber Leg System Shield Rocket Launcher Scythe Scythe Peak State ------------ > --- POWER ------------ Light Nuclear Core > --- PROPULSION ------- Advanced Treads Advanced Treads Advanced Treads Advanced Treads > --- UTILITY ---------- Improved Heat Sink Improved Heat Sink Large Storage Unit Makeshift Light Armor Plating > --- WEAPON ----------- Great Axe > --- INVENTORY -------- Light Ion Engine Makeshift Hacking Suite System Shield Power Bank Particle Gun Particle Gun Subdweller Laser Subdweller Laser Subdweller Laser Subdweller Machine Gun Assault Cannon Slug Cannon Rocket Launcher Mini Grenade Launcher Mining Laser [Rating: 34] Favorites ----------- Power Light Ion Engine Engine Light Ion Engine Power Core Light Nuclear Core Propulsion Light Treads Treads Light Treads Leg Aluminum Leg Wheel Subdweller Monowheel Utility Makeshift Light Armor Plating Device Seismic Detector Storage Medium Storage Unit Processor Target Analyzer Protection Makeshift Light Armor Plating Weapon Subdweller Machine Gun Energy Gun Subdweller Laser Energy Cannon Subdweller Beam Cannon Ballistic Gun Subdweller Machine Gun Ballistic Cannon Light Cannon Launcher Mini Grenade Launcher Special Weapon Mining Laser Slashing Weapon Great Axe Build | -11 -10 -10 -8 ------- Run | Yrd Mat Sub Mat Slots Evolved 4 | . . . 4 Power . | . . . . Propulsion 2 | . . . 2 Utility 2 | . . . 2 Weapon . | . . . . Parts Attached 52 | 8 5 16 23 Power 7 | 1 1 2 3 Engine 6 | 1 1 2 2 Core 1 | . . . 1 Reactor . | . . . . Propulsion 12 | 2 . 4 6 Treads 8 | 2 . . 6 Leg 1 | . . 1 . Wheel 3 | . . 3 . Hover . | . . . . Flight . | . . . . Utility 16 | 3 2 3 8 Device 6 | 2 . 1 3 Storage 3 | 1 1 . 1 Processor 2 | . . . 2 Hackware . | . . . . Protection 5 | . 1 2 2 Artifact . | . . . . Weapon 17 | 2 2 7 6 Energy Gun 4 | 1 . 1 2 Energy Cannon 2 | . . 1 1 Ballistic Gun 6 | 1 . 4 1 Ballistic Cannon 2 | . 2 . . Launcher 1 | . . . 1 Special Weapon 1 | . . 1 . Impact Weapon . | . . . . Slashing Weapon 1 | . . . 1 Piercing Weapon . | . . . . Special Melee Weapon . | . . . . Unidentified Prototypes 1 | . . . 1 Parts Lost 7 | . . 3 4 Power 3 | . . 2 1 Propulsion 3 | . . 1 2 Utility 1 | . . . 1 Weapon . | . . . . Highest Loss Streak 1 | . . 1 1 To Critical Strikes 1 | . . . 1 Average Backups 9 | 4 7 9 12 Power . | . 1 . . Propulsion . | 1 1 . . Utility 2 | . 1 2 3 Weapon 5 | 1 3 5 8 Tool/Special . | . . . . Unused Backups 25 | 1 3 1 20 Power 1 | . . . 1 Propulsion 3 | . 1 . 2 Utility 7 | 1 1 1 4 Weapon 14 | . 1 . 13 Tool/Special . | . . . . Average Slot Usage (%) 90 | . 99 91 84 Engine 7 | . 14 6 3 Core 1 | . . . 4 Treads 19 | . 28 9 27 Leg 2 | . . 4 1 Wheel 6 | . . 13 1 Device 4 | . 7 . 8 Storage 12 | . 14 14 8 Protection 10 | . 6 13 9 Energy Gun 6 | . 3 6 8 Ballistic Gun 9 | . 3 16 4 Ballistic Cannon 5 | . 21 3 . Peak Build Rating 34 | 9 8 16 34 Average Rating 15 | 6 7 13 26 On Entrance 7 | . 7 8 16 Avg Prop Armor Cover (%) 8 | . . 6 10 Naked Turns 49 | . . . 49 Heaviest Build 42 | 12 20 29 42 Greatest Support 86 | 40 40 40 86 Greatest Overweight (x) 2 | . . 2 2 Average Overweight (x) . | . . . . Largest Inventory Capacity 15 | 8 10 10 15 Average Capacity 10 | 7 8 10 13 Most Carried 15 | 6 8 10 15 Average Carried 9 | 4 7 9 12 Final Capacity 10 | 8 10 10 5 Final Carried 10 | 6 8 10 5 Class Distribution -------------------- 83% | Mutant 16% | Scavenger-Mutant Dominant Class ---------------- Mutant | -10/Materials Mutant | -10/Subcaves Scavenger-Mutant | -8/Materials Resources | -11 -10 -10 -8 ----------- Run | Yrd Mat Sub Mat Matter Collected 1358 | 294 208 462 394 Remotely . | . . . . Salvage Created 1657 | 144 333 370 810 Parts 106 | 16 22 25 43 Haulers Intercepted 2 | . 1 . 1 Recyclers Shooed 1 | 1 . . . Parts Field Recycled . | . . . . Retrieved Matter . | . . . . Parts Self-Destructed 4 | . . 4 . Prevented . | . . . . Parts Restored . | . . . . Kills | -11 -10 -10 -8 ------- Run | Yrd Mat Sub Mat Combat Hostiles Destroyed 35 | . 7 12 16 Melee 7 | . . . 7 Guns 15 | . . 10 5 Cannons 9 | . 7 2 . AOE 4 | . . . 4 Classes Destroyed 9 | 2 5 1 1 Worker 3 | 1 1 . 1 Tunneler 6 | 5 . . 1 Hauler 2 | . 1 . 1 Recycler 3 | . 2 . 1 Operator 1 | . 1 . . Swarmer 7 | . 3 2 2 Grunt 14 | . 4 . 10 Sentry 4 | . . . 4 Subdweller 10 | . . 10 . Best Kill Streak 5 | 2 5 2 5 Combat Bots Only 5 | . 3 2 5 Max Kills in Single Turn 1 | 1 1 1 1 Gunslinging . | . . . . Exploded 1 | . . . 1 Melee 1 | . . . 1 Uniques/NPCs Destroyed . | . . . . Combat | -11 -10 -10 -8 -------- Run | Yrd Mat Sub Mat Hostile Shots Fired 192 | . 13 58 121 Missed 45 | . 2 19 24 Hits 147 | . 11 39 97 Projectile 147 | . 11 39 97 AOE 3 | . . 3 . Critical Strikes 10 | . . 1 9 Damage Taken 2594 | . 149 857 1588 Core 685 | . 23 108 554 Absorbed by Shields . | . . . . Redirected to Shielding 21 | . 13 8 . Regen/Repaired (Parts) 13 | . 13 . . Core Remaining (%) 73 | 100 . 47 . Volleys Fired 118 | 14 20 62 22 Largest 2 | 2 2 2 2 Hottest 120 | 70 70 120 120 Shots Fired 206 | 28 40 104 34 Gun 108 | 28 4 52 24 Cannon 70 | . 36 34 . Launcher 10 | . . . 10 Special 18 | . . 18 . Kinetic 137 | 14 38 77 8 Thermal 59 | 14 2 27 16 Explosive 10 | . . . 10 Electromagnetic . | . . . . Robot Hit Streak 18 | 6 8 18 7 Robot Miss Streak 4 | 2 3 4 4 Penetration Max . | . . . . Secondary Targets 2 | . . 1 1 Max Gunslinging Chain 1 | . . 1 1 Shots Hit Robots 148 | 19 23 64 42 Core Hits 69 | 10 14 19 26 Critical Kills . | . . . . Critical Parts Destroyed 2 | . . 1 1 Critical Strikes 6 | 1 . 3 2 Burn 1 | 1 . . . Destroy 2 | . . 1 1 Blast 2 | . . 2 . Sever 1 | . . . 1 Melee Attacks 28 | . . . 28 Impact . | . . . . Slashing 28 | . . . 28 Piercing . | . . . . Sneak Attacks 3 | . . . 3 Combat Hostiles . | . . . . Follow-up Attacks . | . . . . Damage Inflicted 3743 | 218 417 1234 1874 Guns 1307 | 216 24 737 330 Cannons 873 | . 376 497 . Explosions 599 | . . . 599 Melee 932 | . . . 932 Ramming 32 | 2 17 . 13 Kinetic 1638 | 102 376 1052 108 Thermal 542 | 114 24 182 222 Explosive 599 | . . . 599 Electromagnetic . | . . . . Impact . | . . . . Slashing 932 | . . . 932 Piercing . | . . . . Highest Corruption 2 | . . . 2 Average Corruption 2 | . . . 2 Corruption Purged . | . . . . Corruption Blocked . | . . . . Effects 15 | . . . 15 Message Errors 4 | . . . 4 Matter Fused 4 | . . . 4 Heat Flow Errors 1 | . . . 1 Energy Discharges 2 | . . . 2 Data Loss (minor) 3 | . . . 3 Alerts 1 | . . . 1 Overload Shots . | . . . . Overflow Damage 167 | . . . 167 Projectiles . | . . . . Explosions 24 | . . . 24 Melee 143 | . . . 143 Knockbacks 9 | . 2 7 . Impact . | . . . . Kinetic 9 | . 2 7 . Secondary . | . . . . Self-Inflicted Damage 32 | . . . 32 Shots 1 | . . . 1 Rammed 14 | 2 10 . 2 Targets Rammed 15 | 2 11 . 2 Kicked . | . . . . Crushed 1 | . 1 . . Highest Temperature 259 | 60 30 259 248 Average Temperature 49 | 21 15 60 82 Received Heat Transfer 1158 | . 63 402 693 Siege Activations . | . . . . Martial Activations . | . . . . Shielding Activations . | . . . . Robots Disrupted . | . . . . Combat Hostiles . | . . . . Robots Corrupted . | . . . . Combat Hostiles . | . . . . Parts Fried . | . . . . Impact Corruptions . | . . . . Robots Melted . | . . . . Combat Hostiles . | . . . . Parts Melted . | . . . . Heat Transferred 966 | 407 74 235 250 Parts Sabotaged . | . . . . Parts Stolen . | . . . . Parts Stripped . | . . . . Power Chain Reactions . | . . . . Alert | -11 -10 -10 -8 ------- Run | Yrd Mat Sub Mat Maximum Alert Level 1 | . . . 1 Low Security (%) 99 | 100 100 . 98 Level 1 . | . . . 1 Level 2 . | . . . . Level 3 . | . . . . Level 4 . | . . . . Level 5 . | . . . . High Security . | . . . . Max Security . | . . . . Peak Influence 202 | 5 80 . 202 Initial . | . . . . Average 37 | . 21 . 58 Influence Increases 894 | 30 221 70 573 Destroy 0b10 Robot/C 500 | . 140 40 320 Destroy 0b10 Robot/NC 75 | 30 25 . 20 Destroy Leader 104 | . 32 . 72 Successful Hack 8 | . 8 . . Disable Machine 30 | . . . 30 Destroy Structure 42 | . 1 . 41 Partial Spotted 15 | . 15 . . Lose Combat Pursuer 120 | . . 30 90 Influence Decreases 835 | 30 221 70 514 Time Decay 645 | 30 221 70 324 Lost Part 40 | . . . 40 Purge Threat 150 | . . . 150 Squads Dispatched 1 | . 1 . . Investigation . | . . . . Extermination . | . . . . Reinforcement 1 | . 1 . . Assault . | . . . . Garrison . | . . . . Intercept . | . . . . Searches Triggered . | . . . . Construction Impeded . | . . . . Haulers Reinforced . | . . . . Active Scanning Responses . | . . . . Cargo Convoy Interrupts . | . . . . Stealth | -11 -10 -10 -8 --------- Run | Yrd Mat Sub Mat Distress Signals 3 | . 2 . 1 Communications Jammed . | . . . . Distress Signals . | . . . . Times Spotted 59 | . 15 14 30 Peak Tracking Total 6 | . 4 3 6 Tactical Retreats 8 | . . 2 6 Traps | -11 -10 -10 -8 ------- Run | Yrd Mat Sub Mat Traps Triggered 4 | . 1 . 3 Indirectly . | . . . . Trap Hack Attempts . | . . . . Triggered . | . . . . Disarmed . | . . . . Reprogrammed . | . . . . Reused . | . . . . Traps Extracted . | . . . . Installed . | . . . . Triggered . | . . . . Machines | -11 -10 -10 -8 ---------- Run | Yrd Mat Sub Mat Machines Disabled 2 | . . . 2 Max in Single Turn 1 | . . . 1 Garrison Access 1 | . . . 1 Machines Repaired . | . . . . Machines Dismantled . | . . . . Machines Sabotaged . | . . . . Overloaded Fab Kills . | . . . . Hacking | -11 -10 -10 -8 --------- Run | Yrd Mat Sub Mat Machines Accessed 16 | . 7 3 6 Terminals 10 | . 6 . 4 Fabricators . | . . . . Repair Stations 1 | . 1 . . Recycling Units . | . . . . Scanalyzers 1 | . . . 1 Garrison Access 1 | . . . 1 Total Hacks 39 | . 20 7 12 Successful 24 | . 12 7 5 Failed 15 | . 8 . 7 Catastrophic 2 | . 1 . 1 Database Lockouts . | . . . . Manual 21 | . 17 . 4 Terminals 28 | . 18 . 10 Fabricators . | . . . . Repair Stations 2 | . 2 . . Recycling Units . | . . . . Scanalyzers 1 | . . . 1 Garrison Access 1 | . . . 1 Terminal Hacks 13 | . 3 7 3 Record 5 | . . 5 . Part Schematic 1 | . 1 . . Robot Analysis 2 | . 2 . . Prototype ID Bank 2 | . . . 2 Open Door 1 | . . 1 . Unreport Threat 1 | . . . 1 Release Object 1 | . . 1 . Fabricator Hacks . | . . . . Repair Station Hacks 2 | . 2 . . Scan Component 1 | . 1 . . Repair 1 | . 1 . . Recycling Unit Hacks . | . . . . Scanalyzer 1 | . . . 1 Insert Component 1 | . . . 1 Garrison Access Hacks 1 | . . . 1 Seal Access 1 | . . . 1 Unauthorized Hacks 7 | . 7 . . Terminals 7 | . 7 . . Botnet 1 | . 1 . . Skim 6 | . 6 . . Fabricators . | . . . . Repair Stations . | . . . . Recycling Units . | . . . . Scanalyzers . | . . . . Garrison Access . | . . . . Data Cores Recovered . | . . . . Used . | . . . . Hacking Detections 9 | . 6 . 3 Full Trace Events . | . . . . Feedback Events . | . . . . Feedback Blocked . | . . . . Robot Schematics Acquired . | . . . . Robots Built . | . . . . Authchips . | . . . . Time . | . . . . Total Robot Build Rating . | . . . . Part Schematics Acquired 1 | . 1 . . Parts Built . | . . . . Authchips . | . . . . Time . | . . . . Total Part Build Rating . | . . . . Part Studies Acquired . | . . . . Parts Repaired 1 | . 1 . . Time 26 | . 26 . . Parts Recycled . | . . . . Recycled Matter . | . . . . Retrieved Matter . | . . . . Retrieved Components . | . . . . Parts Scanalyzed . | . . . . Part Schematics Acquired . | . . . . Parts Damaged . | . . . . Bothacking | -11 -10 -10 -8 ------------ Run | Yrd Mat Sub Mat Used RIF Installer . | . . . . Robots Hacked . | . . . . Non-combat . | . . . . Combat . | . . . . Robot Hacks Applied . | . . . . Relay Couplers Released . | . . . . Fabnet Peak Effective % . | . . . . Robots Rewired . | . . . . Allies Hacked . | . . . . Hacks Repelled . | . . . . Allies | -11 -10 -10 -8 -------- Run | Yrd Mat Sub Mat Total Allies . | . . . . Largest Group . | . . . . Highest-Rated Group . | . . . . Highest-Rated Ally . | . . . . Total Orders . | . . . . Ally Attacks . | . . . . Total Damage . | . . . . Kills . | . . . . Allies Corrupted . | . . . . Allies Melted . | . . . . Intel | -11 -10 -10 -8 ------- Run | Yrd Mat Sub Mat Active Infowar (turns) 816 | 236 437 122 21 Terrain 53 | 53 . . . Seismic 763 | 183 437 122 21 Robot Analysis Total 2 | . 2 . . Derelict Logs Recovered 2 | . . 2 . Drone Launches . | . . . . Drone Recoveries . | . . . . Exploration | -11 -10 -10 -8 ------------- Run | Yrd Mat Sub Mat Turns Passed 4562 | 369 859 1997 1337 Spaces Moved 2413 | 196 445 1155 617 Core 8 | 5 . . 3 Treads 1375 | 191 445 212 527 Legs 222 | . . 135 87 Wheels 808 | . . 808 . Hover . | . . . . Flight . | . . . . Fastest Speed 50 | 50 160 110 50 Average Speed 152 | 157 160 143 163 Slowest Speed 260 | 160 160 260 260 Overloaded Moves . | . . . . Propulsion Burnouts . | . . . . Robots Hopped . | . . . . Potential Cave-ins . | . . . . Cave-ins Triggered . | . . . . Exploration Rate (%) 51 | 8 74 65 58 Regions Visited 3 Branch Regions 1 Pre-discovered Areas 4 | . . 4 . Known Exits Taken 1 | . 1 . . Unknown Exits Taken 2 | 1 . 1 . Scrap Searched 2 | . . 2 . Spaces Dug . | . . . . Terrain Destroyed 55 | . . . 55 Melee . | . . . . Projectile 1 | . . . 1 AOE 54 | . . . 54 Terrain Rammed . | . . . . Walls Destroyed . | . . . . Machines Disabled . | . . . . Actions | -11 -10 -10 -8 --------- Run | Yrd Mat Sub Mat Total 3002 | 228 547 1361 866 Wait 265 | . 53 94 118 Move 2410 | 195 444 1154 617 Hop . | . . . . Pick Up 46 | 7 6 10 23 Fast Attach 35 | 8 2 8 17 Attach 9 | . . 2 7 Detach 1 | . . . 1 Swap 25 | . 4 16 5 Drop 50 | 2 7 15 26 Fire 118 | 14 20 62 22 Melee 28 | . . . 28 Ram . | . . . . Kick . | . . . . Crush 15 | 2 11 . 2 Escape Stasis . | . . . . Rewire . | . . . . Trap . | . . . . Miscellaneous . | . . . . Route ------- -11/Scrapyard -10/Materials (discovered 5 exits: *Mat x3 / *Min / *Sub) -10/Subcaves -8/Materials (discovered 2 exits: [*Fac] / [*Sto]) History --------- Turn | Location | Event 3 | -11/Scrapyard | Discovered new exit (range 15) 370 | -11/Scrapyard | Entered Materials 371 | -10/Materials | Build established: Mutant 591 | -10/Materials | Discovered new exit (range 10) 905 | -10/Materials | Discovered new exit (range 16) 1073 | -10/Materials | Learned Storage emergency access door positions 1081 | -10/Materials | Identified exit to Materials 1081 | -10/Materials | Identified exit to Mines 1081 | -10/Materials | Identified exit to Subcaves 1084 | -10/Materials | Learned 2 Storage zone layouts 1089 | -10/Materials | Learned 4 Subcaves zone layouts 1102 | -10/Materials | Learned Materials stockpile data 1216 | -10/Materials | Repaired Weapon Shielding 1229 | -10/Materials | Entered Subcaves 1349 | -10/Subcaves | A Subdweller sparked back to life 1349 | -10/Subcaves | A Subdweller sparked back to life 1349 | -10/Subcaves | A Subdweller sparked back to life 1413 | -10/Subcaves | Learned location of Zion (-6) 1413 | -10/Subcaves | Met a Zionite searching for "candidates" 1484 | -10/Subcaves | Found Prototype Device 1636 | -10/Subcaves | Shifting Twisted Machinery released Mak. Light Armor Plating 1665 | -10/Subcaves | Shifting Twisted Machinery released Sub. Machine Gun 1814 | -10/Subcaves | A swath of the cavern ceiling suddenly collapsed 1954 | -10/Subcaves | Visited Clippyterm 1957 | -10/Subcaves | Learned location of Extension (-4) 1957 | -10/Subcaves | Learned Factory stockpile data 2007 | -10/Subcaves | Shifting Twisted Machinery released Sub. Optics 2044 | -10/Subcaves | Shifting Twisted Machinery released Battle Cannon 2232 | -10/Subcaves | Core integrity fell below 50% 2258 | -10/Subcaves | Shifting Twisted Machinery released Sub. Laser 2258 | -10/Subcaves | Shifting Twisted Machinery released Mak. Light Armor Plating 2380 | -10/Subcaves | Learned location of Recycling (-8) 3082 | -10/Subcaves | Discovered new exit (range 7) 3226 | -10/Subcaves | Entered Materials 3226 | -8/Materials | Evolved 4 slots: Propulsion x2, Utility x2 3506 | -8/Materials | Discovered new exit (range 16) 3520 | -8/Materials | Identified Power Bank 4162 | -8/Materials | Build established: Scavenger-Mutant 4508 | -8/Materials | Discovered new exit (range 4) 4514 | -8/Materials | Released all parts (11) 4537 | -8/Materials | Core integrity fell below 50% 4552 | -8/Materials | Core integrity fell below 20% 4563 | -8/Materials | Destroyed by Y-45 Defender with Beam Rifle Last Messages --------------- 04465_ Acquired Scythe. 04500_ Acquired Carbon-fiber Leg. 04501_ System corrupted: Matter fused (-5). 04504_ Dropped Imp. Heat Sink. 04506_ Acquired Melee Analysis Suite. 04508_ EXIT=FOUND 04514_ Connecting with Garrison Access... >>Seal Access door sealed. 04514_ Released Lgt. Armor Plating. 04514_ Released Lgt. Treads. 04514_ Released Sub. Machine Gun. 04514_ Released Autogun. 04514_ Released Target Analyzer. 04514_ Released Adv. Treads. 04514_ Released Lrg. Storage Unit. 04514_ Released Lgt. Nuclear Core. 04514_ Released Melee Analysis Suite. 04521_ >EARHEB,%MHJ5UK=2PWF N0QZ8AGK UO:OGK5 04536_ Critical hit (Burn: +37). Map ----- +----------------------------------------------------+ | | | | | | | | | | | | | | | | | | | | | | | | | | | | | | | ?????????????????????????????????????????????????? | | ?????????????????????????????????????????????????? | | ?????????????????????????????????????????????????? | | ????????????????????????????????????###??????????? | | ########??????????????#######????? ???????????? | | # #??????????????# ##### ?????????????? | | # #????###?????### ???????????????? | | # #????# ?????? < ?????????????????? | | # #????# #???????# ???????????????????? | | # #????+^#???????? Y ?????????????????????? | | # #????#^#?????#####@##?????????????????????? | | ####+######## ##????#]==*]/#?????????????????????? | | ! #????#=[=[![#?????????????????????? | | / ! ######!"!"[!#?????????????????????? | | ][ +="G"]!#?????????????????????? | | ###### ### #####* " #?????????????????????? | | ?????# #?# #???# #?????????????????????? | | ?????# #?#!!!!!!#???########?????????????????????? | | ?????# #?#!!!!!!#????????????????????????????????? | | ?????# #?########????????????????????????????????? | | ?????# #?????????????????????????????????????????? | | ?????# #?????????????????????????????????????????? | | ?????# #?????????????????????????????????????????? | | ?????# #?????????????????????????????????????????? | | ?????# #?????????????????????????????????????????? | | ###??# #?????????????????????????????????????????? | | ####+######????????????????????????????????????? | | ## #????????????????????????????????????? | | ## """ #????????????????????????????????????? | | ## " ##???????????????????????????????????? | | ## #???????????????????????????????????? | | ## ##??????????????????????????????????? | | # #????????????###???####????????????? | | # #????????????# #????????????? | | # ##????????????#* """ #????????????? | +----------------------------------------------------+ Best States ------------- Heat Dissipation 59 Energy Generation 14 Energy Capacity 275 Matter Stores 300 Matter Capacity 300 Sight Range 16 Terrain Scan Range 16 Terrain Scan Density 10 Armor Coverage 250 Weapon Shielding 33 Evasion (%) 40 Melee Accuracy 5 Target Analysis 5 Recoil Reduction 4 Item Schematics ----------------- Huge Storage Unit | -10/Materials | Hacked Robot Schematics ------------------ None Fabricated ------------ Nothing Repaired ---------- Weapon Shielding | 74% | -10/Materials Studied --------- None Alien Tech Used ----------------- None Achievements -------------- None Challenges ------------ None Game ------ Seed SubdwellerReflexPendant Manual? 0 Play Time 00:25:36 Cumulative 971.0 hours Start 2026.07.05 @ 21:13:56 End 2026.07.05 @ 21:37:42 Sessions 1 Manual Loads 0 Difficulty Rogue Special Mode None Game No. 1656 Rogue 1656 Adventurer 0 Explorer 0 Win Type - Total 95 Types 56/1/16/16/4/0/0/1/0/1 Lore% 93 Gallery% 80 Achievement% 68 Wizard Run 0 Options --------- Layout 0 ASCII 1 Keyboard 0 Movement Numpad Keybinds 1 Fullscreen 2 Font 18/SmallcapsGlow Map View 76x50 Zoom Use 0% Tactical HUD 1 Map Filters NONE Filters NONE Steam 1 RUN: 9bf9c4d7-8466-4b9b-b1a7-c84de8fec1da